Cogmind - Beta 11.1 @@@ ROGUE MODE // 2022.05.07 @ 20:59:57 Player: darki Result: Destroyed by Nuclear Core chain reaction Performance ------------- Evolutions (2) 1000 Regions Visited (7) 1400 Robots Destroyed (12) 60 Value Destroyed (426) 426 Prototype IDs (3) 60 Alien Tech Used (0) 0 Bonus (700) 700 TOTAL SCORE: 3646 Bonus ------- Pacifist 200 Entered Garrisons 200 Aligned with FarCom 300 Cogmind --------- Core Integrity 0/550 Matter 300/300 Energy 98/100 System Corruption 0% Temperature Cool (39) Movement Core (50) Location -8/Garrison Parts ------- > --- POWER (1) -------- (None) > --- PROPULSION (5) --- (None) > --- UTILITY (3) ------ Advanced Visual Processing Unit > --- WEAPON (2) ------- (None) > --- INVENTORY (5) ---- Maul Peak State ------------ > --- POWER ------------ Ion Engine > --- PROPULSION ------- Flight Unit Flight Unit Flight Unit VTOL Module > --- UTILITY ---------- (None) > --- WEAPON ----------- AWS/Gauss > --- INVENTORY -------- Nuclear Core Reinforced Deuterium Engine Fission Core Flight Unit Flight Unit [Rating: 23] Favorites ----------- Power Ion Engine Engine Ion Engine Propulsion Flight Unit Wheel Wheel Flight Unit Flight Unit Utility Advanced Visual Processing Unit Device Reaction Control System Storage Small Storage Unit Processor Advanced Visual Processing Unit Weapon Maul Energy Gun Small Laser Ballistic Gun AWS/Gauss Impact Weapon Maul Slashing Weapon Longsword +1 Build | -11 -10 -9 -9 -9 -8 -8 -8 ------- Run | Scr Mat Mat Min Exi Min Mat Gar Slots Evolved 4 | . . 2 . . . 2 . Power . | . . . . . . . . Propulsion 3 | . . 2 . . . 1 . Utility 1 | . . . . . . 1 . Weapon . | . . . . . . . . Parts Attached 23 | 6 2 4 1 5 3 2 . Power 1 | 1 . . . . . . . Engine 1 | 1 . . . . . . . Core . | . . . . . . . . Reactor . | . . . . . . . . Propulsion 9 | 2 2 2 1 . 2 . . Treads . | . . . . . . . . Leg . | . . . . . . . . Wheel 2 | 2 . . . . . . . Hover . | . . . . . . . . Flight 7 | . 2 2 1 . 2 . . Utility 4 | 1 . . . 1 . 2 . Device 2 | . . . . 1 . 1 . Storage 1 | 1 . . . . . . . Processor 1 | . . . . . . 1 . Hackware . | . . . . . . . . Protection . | . . . . . . . . Artifact . | . . . . . . . . Weapon 9 | 2 . 2 . 4 1 . . Energy Gun 2 | 2 . . . . . . . Energy Cannon . | . . . . . . . . Ballistic Gun 1 | . . . . 1 . . . Ballistic Cannon . | . . . . . . . . Launcher . | . . . . . . . . Special Weapon . | . . . . . . . . Impact Weapon 4 | . . 2 . 1 1 . . Slashing Weapon 2 | . . . . 2 . . . Piercing Weapon . | . . . . . . . . Special Melee Weapon . | . . . . . . . . Unidentified Prototypes 3 | . . . . 3 . . . Parts Lost 9 | . . . . . 2 . 7 Power 1 | . . . . . . . 1 Propulsion 6 | . . . . . 2 . 4 Utility 1 | . . . . . . . 1 Weapon 1 | . . . . . . . 1 Highest Loss Streak 6 | . . . . . 2 . 6 To Critical Strikes . | . . . . . . . . Average Slot Usage (%) 73 | . 80 77 77 77 73 67 61 Engine 9 | . 14 11 11 11 11 9 3 Wheel 1 | . 18 . . . . . . Flight 37 | . 9 44 44 44 41 36 26 Device 1 | . . . . . . . 6 Processor 1 | . . . . . . 4 9 Energy Gun 2 | . 28 2 . . . . . Impact Weapon 14 | . . 19 22 20 9 9 7 Slashing Weapon 3 | . . . . 1 11 9 9 Naked Turns . | . . . . . . . . Heaviest Build 13 | 13 13 11 11 11 11 12 12 Greatest Support 20 | 20 20 16 16 16 16 16 16 Greatest Overweight (x) 1 | . 1 . . . . . . Average Overweight (x) . | . . . . . . . . Largest Inventory Capacity 8 | 8 8 5 5 5 5 5 5 Average Capacity 5 | 6 6 5 5 5 5 5 5 Most Carried 5 | . 5 4 4 5 5 3 4 Average Carried 3 | . 1 3 3 4 3 3 3 Final Capacity 8 | 8 5 5 5 5 5 5 5 Final Carried 5 | . 5 3 4 5 3 3 1 Class Distribution -------------------- 84% | Sprinter 15% | Mutant Dominant Class ---------------- Mutant | -10/Materials Sprinter | -9/Materials Sprinter | -9/Mines Sprinter | -9/Exiles Sprinter | -8/Mines Sprinter | -8/Materials Sprinter | -8/Garrison Resources | -11 -10 -9 -9 -9 -8 -8 -8 ----------- Run | Scr Mat Mat Min Exi Min Mat Gar Matter Collected 400 | 233 27 60 10 . 70 . . Remotely . | . . . . . . . . Salvage Created 530 | . . . 37 . 434 . 59 Parts 13 | . . . . . 10 . 3 Haulers Intercepted . | . . . . . . . . Recyclers Shooed . | . . . . . . . . Parts Field Recycled . | . . . . . . . . Retrieved Matter . | . . . . . . . . Parts Self-Destructed . | . . . . . . . . Prevented . | . . . . . . . . Kills | -11 -10 -9 -9 -9 -8 -8 -8 ------- Run | Scr Mat Mat Min Exi Min Mat Gar Combat Hostiles Destroyed 4 | . . . . . 3 . 1 Melee 4 | . . . . . 3 . 1 Classes Destroyed 5 | . . . 1 . 4 . . Worker 1 | . . . . . 1 . . Tunneler 3 | . . . 2 . 1 . . Recycler 4 | . . . . . 4 . . Grunt 3 | . . . . . 2 . 1 Brawler 1 | . . . . . 1 . . Best Kill Streak 9 | . . . 2 . 9 . 1 Combat Bots Only 3 | . . . . . 3 . 1 Max Kills in Single Turn 1 | . . . 1 . 1 . 1 Gunslinging . | . . . . . . . . Exploded . | . . . . . . . . Melee 1 | . . . . . 1 . 1 Uniques/NPCs Destroyed . | . . . . . . . . Combat | -11 -10 -9 -9 -9 -8 -8 -8 -------- Run | Scr Mat Mat Min Exi Min Mat Gar Damage Taken 1069 | . . 187 . . 74 . 808 Core 628 | . . 77 . . . . 551 Absorbed by Shields 116 | . . . . . . . 116 Core Remaining (%) 93 | 100 100 . . . 80 . . Volleys Fired . | . . . . . . . . Largest . | . . . . . . . . Hottest . | . . . . . . . . Shots Fired . | . . . . . . . . Gun . | . . . . . . . . Cannon . | . . . . . . . . Launcher . | . . . . . . . . Special . | . . . . . . . . Kinetic . | . . . . . . . . Thermal . | . . . . . . . . Explosive . | . . . . . . . . Electromagnetic . | . . . . . . . . Robot Hit Streak . | . . . . . . . . Robot Miss Streak . | . . . . . . . . Penetration Max . | . . . . . . . . Secondary Targets . | . . . . . . . . Shots Hit Robots 19 | . . . 2 . 14 . 3 Core Hits 6 | . . . . . 5 . 1 Critical Kills 2 | . . . . . 2 . . Critical Parts Destroyed 4 | . . . 1 . 3 . . Critical Strikes 8 | . . . 1 . 6 . 1 Smash 6 | . . . 1 . 5 . . Sever 2 | . . . . . 1 . 1 Melee Attacks 32 | . . 1 3 . 21 . 7 Impact 18 | . . 1 3 . 12 . 2 Slashing 14 | . . . . . 9 . 5 Piercing . | . . . . . . . . Sneak Attacks 7 | . . . 2 . 5 . . Combat Hostiles . | . . . . . . . . Follow-up Attacks 1 | . . . . . 1 . . Damage Inflicted 1210 | . . . 181 . 878 . 151 Guns . | . . . . . . . . Cannons . | . . . . . . . . Explosions . | . . . . . . . . Melee 1210 | . . . 181 . 878 . 151 Ramming . | . . . . . . . . Kinetic . | . . . . . . . . Thermal . | . . . . . . . . Explosive . | . . . . . . . . Electromagnetic . | . . . . . . . . Impact 876 | . . . 181 . 638 . 57 Slashing 334 | . . . . . 240 . 94 Piercing . | . . . . . . . . Highest Corruption . | . . . . . . . . Average Corruption . | . . . . . . . . Corruption Purged . | . . . . . . . . Corruption Blocked . | . . . . . . . . Overload Shots . | . . . . . . . . Overflow Damage 498 | . . . 141 . 357 . . Projectiles . | . . . . . . . . Explosions . | . . . . . . . . Melee 498 | . . . 141 . 357 . . Knockbacks 4 | . . . 2 . 2 . . Impact 4 | . . . 2 . 2 . . Kinetic . | . . . . . . . . Secondary . | . . . . . . . . Self-Inflicted Damage . | . . . . . . . . Shots . | . . . . . . . . Rammed . | . . . . . . . . Targets Rammed . | . . . . . . . . Kicked . | . . . . . . . . Crushed . | . . . . . . . . Highest Temperature 12 | . . 12 . . . . 6 Average Temperature 5 | . . 7 . . . . 4 Received Heat Transfer 424 | . . 24 . . 27 . 373 Siege Activations . | . . . . . . . . Robots Corrupted . | . . . . . . . . Combat Hostiles . | . . . . . . . . Parts Fried 5 | . . . 3 . 2 . . Impact Corruptions 15 | . . . 5 . 10 . . Robots Melted . | . . . . . . . . Combat Hostiles . | . . . . . . . . Parts Melted . | . . . . . . . . Heat Transferred . | . . . . . . . . Parts Sabotaged . | . . . . . . . . Parts Stolen . | . . . . . . . . Parts Stripped . | . . . . . . . . Power Chain Reactions . | . . . . . . . . Missiles Intercepted . | . . . . . . . . Alert | -11 -10 -9 -9 -9 -8 -8 -8 ------- Run | Scr Mat Mat Min Exi Min Mat Gar Peak Influence 143 | . . 143 65 . 91 35 105 Initial 55 | . . . 55 . . 35 22 Average 38 | . . 44 57 . 74 35 31 Maximum Alert Level . | . . . . . . . . Low Security (%) 100 | 100 100 100 100 . 100 100 100 Level 1 . | . . . . . . . . Level 2 . | . . . . . . . . Level 3 . | . . . . . . . . Level 4 . | . . . . . . . . Level 5 . | . . . . . . . . High Security . | . . . . . . . . Max Security . | . . . . . . . . Squads Dispatched . | . . . . . . . . Investigation . | . . . . . . . . Extermination . | . . . . . . . . Reinforcement . | . . . . . . . . Assault . | . . . . . . . . Garrison . | . . . . . . . . Intercept . | . . . . . . . . Searches Triggered . | . . . . . . . . Construction Impeded . | . . . . . . . . Haulers Reinforced . | . . . . . . . . Active Scanning Responses . | . . . . . . . . Cargo Convoy Interrupts . | . . . . . . . . Stealth | -11 -10 -9 -9 -9 -8 -8 -8 --------- Run | Scr Mat Mat Min Exi Min Mat Gar Distress Signals 3 | . . 3 . . . . . Communications Jammed . | . . . . . . . . Distress Signals . | . . . . . . . . Times Spotted 36 | . 1 19 . . 3 . 13 Peak Tracking Total 15 | . 1 15 . . 3 . 13 Tactical Retreats 4 | . . 2 . . . . 2 Traps | -11 -10 -9 -9 -9 -8 -8 -8 ------- Run | Scr Mat Mat Min Exi Min Mat Gar Traps Triggered 3 | . . . . . . . 3 Indirectly . | . . . . . . . . Trap Hack Attempts . | . . . . . . . . Triggered . | . . . . . . . . Disarmed . | . . . . . . . . Reprogrammed . | . . . . . . . . Reused . | . . . . . . . . Traps Extracted . | . . . . . . . . Installed . | . . . . . . . . Triggered . | . . . . . . . . Exploded 1 | . . . . . . . 1 Machines | -11 -10 -9 -9 -9 -8 -8 -8 ---------- Run | Scr Mat Mat Min Exi Min Mat Gar Machines Disabled 1 | . . . . . . . 1 Max in Single Turn 1 | . . . . . . . 1 Garrison Relay 1 | . . . . . . . 1 Machines Sabotaged . | . . . . . . . . Garrisons Compromised . | . . . . . . . . Overloaded Fab Kills . | . . . . . . . . Hacking | -11 -10 -9 -9 -9 -8 -8 -8 --------- Run | Scr Mat Mat Min Exi Min Mat Gar Machines Accessed 6 | . . 1 . 4 . 1 . Terminals 1 | . . 1 . . . . . Fabricators . | . . . . . . . . Repair Stations . | . . . . . . . . Recycling Units . | . . . . . . . . Scanalyzers . | . . . . . . . . Garrison Access 1 | . . . . . . 1 . Total Hacks 53 | . . 3 . 49 . 1 . Successful 51 | . . 1 . 49 . 1 . Failed 2 | . . 2 . . . . . Catastrophic . | . . . . . . . . Database Lockouts . | . . . . . . . . Manual 8 | . . 3 . 5 . . . Terminals 3 | . . 3 . . . . . Fabricators . | . . . . . . . . Repair Stations . | . . . . . . . . Recycling Units . | . . . . . . . . Scanalyzers . | . . . . . . . . Garrison Access 1 | . . . . . . 1 . Terminal Hacks 50 | . . 1 . 49 . . . Record 49 | . . . . 49 . . . Branch Access Points 1 | . . 1 . . . . . Fabricator Hacks . | . . . . . . . . Repair Station Hacks . | . . . . . . . . Recycling Unit Hacks . | . . . . . . . . Scanalyzer . | . . . . . . . . Garrison Access Hacks 1 | . . . . . . 1 . Unlock Access 1 | . . . . . . 1 . Unauthorized Hacks . | . . . . . . . . Terminals . | . . . . . . . . Fabricators . | . . . . . . . . Repair Stations . | . . . . . . . . Recycling Units . | . . . . . . . . Scanalyzers . | . . . . . . . . Garrison Access . | . . . . . . . . Data Cores Recovered . | . . . . . . . . Used . | . . . . . . . . Hacking Detections 1 | . . . . . . 1 . Full Trace Events . | . . . . . . . . Feedback Events . | . . . . . . . . Feedback Blocked . | . . . . . . . . Robot Schematics Acquired . | . . . . . . . . Robots Built . | . . . . . . . . Authchips . | . . . . . . . . Time . | . . . . . . . . Total Robot Build Rating . | . . . . . . . . Part Schematics Acquired . | . . . . . . . . Parts Built . | . . . . . . . . Authchips . | . . . . . . . . Time . | . . . . . . . . Total Part Build Rating . | . . . . . . . . Parts Repaired . | . . . . . . . . Time . | . . . . . . . . Parts Recycled . | . . . . . . . . Recycled Matter . | . . . . . . . . Retrieved Matter . | . . . . . . . . Retrieved Components . | . . . . . . . . Parts Scanalyzed . | . . . . . . . . Part Schematics Acquired . | . . . . . . . . Parts Damaged . | . . . . . . . . Bothacking | -11 -10 -9 -9 -9 -8 -8 -8 ------------ Run | Scr Mat Mat Min Exi Min Mat Gar Used RIF Installer . | . . . . . . . . Robots Hacked . | . . . . . . . . Non-combat . | . . . . . . . . Combat . | . . . . . . . . Robot Hacks Applied . | . . . . . . . . Relay Couplers Released 5 | . . . . . . . 5 Machine Destruction 5 | . . . . . . . 5 Fabnet Peak Effective % . | . . . . . . . . Robots Rewired . | . . . . . . . . Allies Hacked . | . . . . . . . . Hacks Repelled . | . . . . . . . . Allies | -11 -10 -9 -9 -9 -8 -8 -8 -------- Run | Scr Mat Mat Min Exi Min Mat Gar Total Allies . | . . . . . . . . Largest Group . | . . . . . . . . Highest-Rated Group . | . . . . . . . . Highest-Rated Ally . | . . . . . . . . Total Orders . | . . . . . . . . Ally Attacks . | . . . . . . . . Total Damage . | . . . . . . . . Kills . | . . . . . . . . Allies Corrupted . | . . . . . . . . Allies Melted . | . . . . . . . . Intel | -11 -10 -9 -9 -9 -8 -8 -8 ------- Run | Scr Mat Mat Min Exi Min Mat Gar Robot Analysis Total . | . . . . . . . . Derelict Logs Recovered 1 | . . . 1 . . . . Drone Launches . | . . . . . . . . Drone Recoveries . | . . . . . . . . Exploration | -11 -10 -9 -9 -9 -8 -8 -8 ------------- Run | Scr Mat Mat Min Exi Min Mat Gar Turns Passed 806 | 47 57 81 65 288 98 20 150 Spaces Moved 1926 | 48 80 232 183 938 155 54 236 Core 22 | 1 . . . . . . 21 Treads . | . . . . . . . . Legs . | . . . . . . . . Wheels 87 | 47 40 . . . . . . Hover . | . . . . . . . . Flight 1817 | . 40 232 183 938 155 54 215 Fastest Speed 29 | 50 37 31 29 29 29 31 31 Average Speed 32 | 79 59 31 29 29 31 31 34 Slowest Speed 120 | 80 120 31 31 29 37 31 50 Overloaded Moves . | . . . . . . . . Propulsion Burnouts . | . . . . . . . . Robots Hopped . | . . . . . . . . Cave-ins Triggered . | . . . . . . . . Exploration Rate (%) 37 | 3 20 40 42 93 35 10 58 Regions Visited 7 Branch Regions 3 Pre-discovered Areas 1 | . . . . 1 . . . Known Exits Taken 2 | . . 1 . . . 1 . Unknown Exits Taken 5 | 1 1 . 1 1 1 . . Scrap Searched 1 | . . . 1 . . . . Spaces Dug 2 | . . . . . 1 . 1 Terrain Destroyed 2 | . . . . . 1 . 1 Melee 2 | . . . . . 1 . 1 Projectile . | . . . . . . . . AOE . | . . . . . . . . Terrain Rammed . | . . . . . . . . Walls Destroyed . | . . . . . . . . Machines Disabled . | . . . . . . . . Actions | -11 -10 -9 -9 -9 -8 -8 -8 --------- Run | Scr Mat Mat Min Exi Min Mat Gar Total 2051 | 53 89 238 189 954 175 56 297 Wait 31 | . . . 4 2 1 . 24 Move 1917 | 47 79 231 182 937 154 54 233 Hop . | . . . . . . . . Pick Up 8 | . 5 . . 3 . . . Fast Attach 18 | 6 2 2 . 5 1 2 . Attach 4 | . . 2 . . 2 . . Detach 1 | . . . . . . . 1 Swap 1 | . . . 1 . . . . Drop 16 | . 3 2 . 7 1 . 3 Fire . | . . . . . . . . Melee 25 | . . 1 2 . 16 . 6 Ram . | . . . . . . . . Kick . | . . . . . . . . Crush . | . . . . . . . . Escape Stasis 30 | . . . . . . . 30 Rewire . | . . . . . . . . Trap . | . . . . . . . . Miscellaneous . | . . . . . . . . Route ------- -11/Scrapyard -10/Materials -9/Materials -9/Mines -9/Exiles -8/Mines -8/Materials -8/Garrison (discovered 2 exits: [*Mat x2]) History --------- Turn | Location | Event 16 | -11/Scrapyard | Discovered new exit (range 15) 48 | -11/Scrapyard | Entered Materials 100 | -10/Materials | Discovered new exit (range 16) 105 | -10/Materials | Entered another Materials area 105 | -9/Materials | Evolved 2 slots: Propulsion x2 137 | -9/Materials | Identified exit to Mines 186 | -9/Materials | Entered Mines 197 | -9/Mines | Learned Materials stockpile data 249 | -9/Mines | Deemed a non-threat by the Exiles lab entrance 250 | -9/Mines | Discovered new exit (range 5) 251 | -9/Mines | Entered Exiles 263 | -9/Exiles | Met 8R-AWN 268 | -9/Exiles | Met EX-HEX 279 | -9/Exiles | Met EX-DEC 282 | -9/Exiles | Learned location of Zion (-6) 296 | -9/Exiles | Discovered new exit (range 11) 320 | -9/Exiles | Visited The Gauntlet 361 | -9/Exiles | Met EX-BIN 376 | -9/Exiles | Build established: Sprinter 391 | -9/Exiles | Aligned with FarCom system 391 | -9/Exiles | Given EX-Vault access code 497 | -9/Exiles | Opened EX-Vault 498 | -9/Exiles | Found Prototype Device 498 | -9/Exiles | Identified Trap Reconfigurator 502 | -9/Exiles | Found Prototype Slashing Weapon 502 | -9/Exiles | Identified Longsword +1 505 | -9/Exiles | Found Prototype Ballistic Gun 505 | -9/Exiles | Identified AWS/Gauss 517 | -9/Exiles | Warned to stay clear of 0b10 Research branches 539 | -9/Exiles | Left Exiles lab with Longsword +1 539 | -9/Exiles | Entered Mines 564 | -8/Mines | Discovered new exit (range 5) 637 | -8/Mines | Entered Materials 637 | -8/Materials | Evolved 2 slots: Propulsion x1, Utility x1 657 | -8/Materials | Identified exit to Garrison 657 | -8/Materials | Entered Garrison 684 | -8/Garrison | Triggered checkpoint 686 | -8/Garrison | Triggered checkpoint 712 | -8/Garrison | Discovered new exit (range 12) 723 | -8/Garrison | Attempted to access garrison exit controls, blocked by remote lockdown 750 | -8/Garrison | Triggered checkpoint 763 | -8/Garrison | Discovered new exit (range 19) 769 | -8/Garrison | Attempted to access garrison exit controls, blocked by remote lockdown 792 | -8/Garrison | Core integrity fell below 50% 793 | -8/Garrison | Garrison Relay disabled 805 | -8/Garrison | Core integrity fell below 20% 807 | -8/Garrison | Destroyed by Nuclear Core chain reaction Last Messages --------------- 00787_ Field strength at 13. 00788_ Field strength at 7. 00788_ Stasis field depleted. 00793_ Garrison Relay disabled. 00793_ Relay Coupler [Swarmer] tumbles out of relay unit. 00793_ Relay Coupler [Grunt] tumbles out of relay unit. 00793_ Relay Coupler [Demolisher] tumbles out of relay unit. 00793_ Relay Coupler [Hunter] tumbles out of relay unit. 00793_ Relay Coupler [NC] tumbles out of relay unit. 00794_ Garrison Relay collapses. 00799_ G-50 Soldier Carbon-fiber Leg severed. 00800_ Critical hit (Burn: +37). 00803_ G-50 Soldier destroyed. 00805_ Longsword +1 destroyed. 00805_ Critical hit (Burn: +37). 00805_ Dropped Rigged Nuclear Core. 00806_ Dropped Rigged Rnf. Deuterium Engine. 00806_ Dropped Rigged Fission Core. 00807_ Critical hit (Burn: +37). 00807_ Rigged Nuclear Core explodes. Map ----- +----------------------------------------------------+ | ?????# #????????????????????????????????????????? | | ###### #????????????????????????????????????????? | | ## #????????????????????????????????????????? | | ## ##???????????????????????????????????????? | | #???????????????????????????????????????? | | ^ #???????????????????????????????????????? | | #???????????????????????????????????????? | | ## #???????????????????????????????????????? | | ## #???????????????????????????????????????? | | "???????????????????????????????????????? | | "???????????????????????????????????????? | | "???????????????????????????????????????? | | "???????????????????????????????????????? | | ## #???????????????????????????????????????? | | ## ############????????????????????????????? | | ^^ #????????????????????????????? | | #????????????????????????????? | | #????????????????????????????? | | ############# #????????????????????????????? | | ????????????# #????????????????????????????? | | ####????????????# #????????????????????????????? | | ????????????????# #????????????????????????????? | | ????????????????# ######??#######??????????????? | | ????????????????# g## * #??# #??????????????? | | ?????# #### #### ##Yl*#####!!!###?????????????? | | ?????# + gg=*^@^ ! ! #?????????????? | | ?????# + g Y ^ ^^ #?????????????? | | ?????????######## ################?????????????? | | ????????????????# #????????????????????????????? | | ????????????????# #????????????????????????????? | | ????????????????# g#????????????????????????????? | | ????????????????# #????????????????????????????? | | ????????????????# l#????????????????????????????? | | ????????????????# #g???????????????????????????? | | ????????????????# #????????????????????????????? | | ????????????????# #????????????????????????????? | | ????????????????# #????????????????????????????? | | ????????????????# #????????????????????????????? | | ????????????????# #????????????????????????????? | | ????????????????# #????????????????????????????? | | ????????????????# #????????????????????????????? | | ????????????????# #????????????????????????????? | | ????????????????# #????????????????????????????? | | ????????????????# #????????????????????????????? | | ????????????????# #????????????????????????????? | | ????????????????# #????????????????????????????? | | ????????????????# ###??????????????????????????? | | ????????????????# #??????????????????????????? | | ????????????????# < #??????????????????????????? | | ????????????????# #??????????????????????????? | +----------------------------------------------------+ Best States ------------- Heat Dissipation 31 Energy Generation 10 Energy Capacity 250 Matter Stores 300 Matter Capacity 300 Sight Range 20 Terrain Scan Density 10 Evasion (%) 71 Item Schematics ----------------- None Robot Schematics ------------------ None Fabricated ------------ Nothing Alien Tech Used ----------------- None Achievements -------------- Deadly Force Challenges ------------ None Game ------ Seed TerrainShockStripper Manual? 0 Play Time 00:20:44 Cumulative 57.2 hours Start 2022.05.07 @ 20:28:42 End 2022.05.07 @ 20:59:57 Sessions 1 Manual Loads 0 Difficulty Rogue Special Mode None Game No. 67 Rogue 67 Adventurer 0 Explorer 0 Win Type - Total 0 Types 0/0/0/0/0/0/0/0/0 Lore% 34 Gallery% 42 Achievement% 33 Wizard Run 0 Options --------- ASCII 0 Keyboard 0 Movement Numpad Keybinds 0 Fullscreen 1 Font 18/SmallcapsGlow Map View 76x50 Tactical HUD 1 Map Filters NONE Filters NONE Steam 1 RUN: ffeebd8c-f9c3-425a-9e36-b067920f1274